[Event "Titled Tuesday Blitz March 15 Late 2022"]
[White "Sharafiev, Azat"]
[Black "Batsiashvili, Nino"]
[WhiteFideId "4186214"]
[BlackFideId "13602993"]
[WhiteElo "2299"]
[BlackElo "2192"]
[Result "1/2-1/2"]
[Round "03"]
[TimeControl "180+1"]
[Date "2022.03.16"]
[WhiteClock "0:00:04"]
[BlackClock "0:00:09"]

1. d4 {[%clk 0:02:49]}  Nf6 {[%clk 0:02:59]} 2. Nf3 {[%clk 0:02:48]}  e6 {[%clk 0:02:59]} 3. Bg5 {[%clk 0:02:47]}  d5 {[%clk 0:02:59]} 4. Nbd2 {[%clk 0:02:47]}  c5 {[%clk 0:02:58]} 5. e3 {[%clk 0:02:44]}  Nc6 {[%clk 0:02:57]} 6. c3 {[%clk 0:02:44]}  Bd6 {[%clk 0:02:52]} 7. Bd3 {[%clk 0:02:42]}  h6 {[%clk 0:02:44]} 8. Bh4 {[%clk 0:02:41]}  b6 {[%clk 0:02:42]} 9. e4 {[%clk 0:02:32]}  cxd4 {[%clk 0:02:28]} 10. Bb5 {[%clk 0:02:22]}  Bd7 {[%clk 0:02:26]} 11. Bxc6 {[%clk 0:02:21]}  Bxc6 {[%clk 0:02:19]} 12. e5 {[%clk 0:02:22]}  dxc3 {[%clk 0:02:16]} 13. bxc3 {[%clk 0:02:21]}  Be7 {[%clk 0:02:05]} 14. exf6 {[%clk 0:02:21]}  Bxf6 {[%clk 0:02:06]} 15. Bxf6 {[%clk 0:02:19]}  Qxf6 {[%clk 0:02:07]} 16. Nd4 {[%clk 0:02:19]}  Bd7 {[%clk 0:02:02]} 17. O-O {[%clk 0:02:18]}  O-O {[%clk 0:01:58]} 18. f4 {[%clk 0:02:16]}  Rfc8 {[%clk 0:01:56]} 19. Rc1 {[%clk 0:02:12]}  Rxc3 {[%clk 0:01:51]} 20. N2f3 {[%clk 0:02:08]}  Rac8 {[%clk 0:01:40]} 21. Qd2 {[%clk 0:02:06]}  Rxc1 {[%clk 0:01:18]} 22. Rxc1 {[%clk 0:02:06]}  Rxc1+ {[%clk 0:01:17]} 23. Qxc1 {[%clk 0:02:07]}  Ba4 {[%clk 0:00:58]} 24. Qc7 {[%clk 0:01:47]}  Qg6 {[%clk 0:00:44]} 25. h4 {[%clk 0:01:35]}  Qb1+ {[%clk 0:00:35]} 26. Kh2 {[%clk 0:01:35]}  Bd1 {[%clk 0:00:27]} 27. Ne5 {[%clk 0:01:16]}  Bh5 {[%clk 0:00:24]} 28. Qd8+ {[%clk 0:01:13]}  Kh7 {[%clk 0:00:21]} 29. Nd7 {[%clk 0:01:13]}  Qe4 {[%clk 0:00:17]} 30. Nf8+ {[%clk 0:01:11]}  Kg8 {[%clk 0:00:17]} 31. Nfxe6+ {[%clk 0:01:11]}  Kh7 {[%clk 0:00:17]} 32. Nf8+ {[%clk 0:01:11]}  Kg8 {[%clk 0:00:18]} 33. g3 {[%clk 0:00:14]}  Qe3 {[%clk 0:00:09]} 34. Nfe6+ {[%clk 0:00:10]}  Kh7 {[%clk 0:00:09]} 35. Nf8+ {[%clk 0:00:09]}  Kg8 {[%clk 0:00:09]} 36. Ng6+ {[%clk 0:00:06]}  Kh7 {[%clk 0:00:09]} 37. Nf8+ {[%clk 0:00:04]}  Kg8 {[%clk 0:00:09]} 1/2-1/2


[Site "https://www.chess.com"]

[Event "Titled Tuesday Blitz March 15 Late 2022"]
[White "Shimanov, Aleksandr"]
[Black "Deac, Bogdan-Daniel"]
[WhiteFideId "4198603"]
[BlackFideId "1226380"]
[WhiteElo "2636"]
[BlackElo "2646"]
[Result "1/2-1/2"]
[Round "03"]
[TimeControl "180+1"]
[Date "2022.03.15"]
[WhiteClock "0:00:08"]
[BlackClock "0:00:02"]

1. d4 {[%clk 0:02:59]}  Nf6 {[%clk 0:02:59]} 2. Nf3 {[%clk 0:03:00]}  d5 {[%clk 0:02:59]} 3. c3 {[%clk 0:03:00]}  Bf5 {[%clk 0:02:48]} 4. Qb3 {[%clk 0:02:59]}  Qc8 {[%clk 0:02:48]} 5. c4 {[%clk 0:02:59]}  e6 {[%clk 0:02:47]} 6. Nc3 {[%clk 0:02:59]}  c6 {[%clk 0:02:47]} 7. Bf4 {[%clk 0:02:58]}  Be7 {[%clk 0:02:41]} 8. e3 {[%clk 0:02:58]}  O-O {[%clk 0:02:41]} 9. Rc1 {[%clk 0:02:57]}  Nbd7 {[%clk 0:02:41]} 10. h3 {[%clk 0:02:55]}  Ne4 {[%clk 0:02:39]} 11. Be2 {[%clk 0:02:54]}  Ndf6 {[%clk 0:02:35]} 12. O-O {[%clk 0:02:52]}  Bd6 {[%clk 0:02:34]} 13. Bxd6 {[%clk 0:02:18]}  Nxd6 {[%clk 0:02:35]} 14. cxd5 {[%clk 0:02:15]}  exd5 {[%clk 0:02:33]} 15. Qa3 {[%clk 0:02:15]}  Rd8 {[%clk 0:02:18]} 16. b4 {[%clk 0:02:14]}  a6 {[%clk 0:02:15]} 17. Qb2 {[%clk 0:02:14]}  Bxh3 {[%clk 0:01:39]} 18. gxh3 {[%clk 0:02:15]}  Qxh3 {[%clk 0:01:39]} 19. Nh2 {[%clk 0:01:59]}  Nde4 {[%clk 0:01:01]} 20. Nxe4 {[%clk 0:01:59]}  Nxe4 {[%clk 0:01:01]} 21. Bf3 {[%clk 0:01:51]}  Rd6 {[%clk 0:00:53]} 22. Bxe4 {[%clk 0:01:42]}  dxe4 {[%clk 0:00:41]} 23. Kh1 {[%clk 0:01:34]}  Rh6 {[%clk 0:00:37]} 24. f3 {[%clk 0:01:34]}  exf3 {[%clk 0:00:37]} 25. Qf2 {[%clk 0:01:35]}  Re8 {[%clk 0:00:34]} 26. Rg1 {[%clk 0:01:34]}  Rxe3 {[%clk 0:00:22]} 27. Rce1 {[%clk 0:01:30]}  Ree6 {[%clk 0:00:12]} 28. Rxe6 {[%clk 0:01:10]}  Qxe6 {[%clk 0:00:13]} 29. Re1 {[%clk 0:01:08]}  Qd7 {[%clk 0:00:10]} 30. Qxf3 {[%clk 0:01:07]}  Re6 {[%clk 0:00:06]} 31. Rxe6 {[%clk 0:00:54]}  Qxe6 {[%clk 0:00:07]} 32. a3 {[%clk 0:00:55]}  h6 {[%clk 0:00:07]} 33. Kg2 {[%clk 0:00:50]}  f5 {[%clk 0:00:07]} 34. Nf1 {[%clk 0:00:50]}  g5 {[%clk 0:00:06]} 35. Ne3 {[%clk 0:00:42]}  f4 {[%clk 0:00:07]} 36. Ng4 {[%clk 0:00:43]}  Kg7 {[%clk 0:00:04]} 37. Ne5 {[%clk 0:00:41]}  Qd6 {[%clk 0:00:04]} 38. Qh5 {[%clk 0:00:33]}  Qd5+ {[%clk 0:00:03]} 39. Kh2 {[%clk 0:00:33]}  Qe6 {[%clk 0:00:03]} 40. a4 {[%clk 0:00:26]}  Qa2+ {[%clk 0:00:03]} 41. Kh3 {[%clk 0:00:25]}  Qb3+ {[%clk 0:00:03]} 42. Kh2 {[%clk 0:00:22]}  Qa2+ {[%clk 0:00:02]} 43. Kh3 {[%clk 0:00:13]}  Qe6+ {[%clk 0:00:02]} 44. Kh2 {[%clk 0:00:08]}  Qa2+ {[%clk 0:00:02]} 1/2-1/2


[Site "https://www.chess.com"]

[Event "Titled Tuesday Blitz March 15 Late 2022"]
[White "Sinitsina, Anastassia"]
[Black "Sailer, Mike"]
[WhiteFideId "4504640"]
[BlackFideId "2012901"]
[WhiteElo "2144"]
[BlackElo "2109"]
[Result "1-0"]
[Round "03"]
[TimeControl "180+1"]
[Date "2022.03.16"]
[WhiteClock "0:00:52"]
[BlackClock "0:00:11"]

1. Nf3 {[%clk 0:02:57]}  d5 {[%clk 0:02:58]} 2. g3 {[%clk 0:02:57]}  Nf6 {[%clk 0:02:58]} 3. Bg2 {[%clk 0:02:58]}  Bf5 {[%clk 0:02:59]} 4. O-O {[%clk 0:02:58]}  e6 {[%clk 0:02:59]} 5. d3 {[%clk 0:02:59]}  Be7 {[%clk 0:03:00]} 6. Nfd2 {[%clk 0:02:59]}  O-O {[%clk 0:03:00]} 7. e4 {[%clk 0:02:59]}  Bg6 {[%clk 0:03:01]} 8. Qe2 {[%clk 0:02:56]}  c5 {[%clk 0:03:01]} 9. f4 {[%clk 0:02:56]}  h6 {[%clk 0:02:52]} 10. g4 {[%clk 0:02:50]}  Nc6 {[%clk 0:02:51]} 11. c3 {[%clk 0:02:47]}  b5 {[%clk 0:02:33]} 12. h4 {[%clk 0:02:36]}  b4 {[%clk 0:02:29]} 13. g5 {[%clk 0:02:28]}  Bh5 {[%clk 0:02:28]} 14. Qf2 {[%clk 0:02:17]}  Ng4 {[%clk 0:02:22]} 15. Qg3 {[%clk 0:02:16]}  d4 {[%clk 0:02:20]} 16. e5 {[%clk 0:01:46]}  Rc8 {[%clk 0:01:59]} 17. c4 {[%clk 0:01:39]}  Ne3 {[%clk 0:01:58]} 18. Ne4 {[%clk 0:01:15]}  Nxf1 {[%clk 0:01:47]} 19. Bxf1 {[%clk 0:01:15]}  hxg5 {[%clk 0:01:46]} 20. hxg5 {[%clk 0:01:13]}  Bg6 {[%clk 0:01:39]} 21. Nbd2 {[%clk 0:01:10]}  Bf5 {[%clk 0:01:11]} 22. Nf6+ {[%clk 0:00:56]}  Bxf6 {[%clk 0:00:56]} 23. gxf6 {[%clk 0:00:55]}  Bg6 {[%clk 0:00:29]} 24. Qg5 {[%clk 0:00:54]}  gxf6 {[%clk 0:00:11]} 25. exf6 {[%clk 0:00:52]} 1-0


[Site "https://www.chess.com"]

[Event "Titled Tuesday Blitz March 15 Late 2022"]
[White "Spitzl, Vinzent"]
[Black "Zhurbinsky, David"]
[WhiteFideId "12901253"]
[BlackFideId "2072904"]
[WhiteElo "2160"]
[BlackElo "2600"]
[Result "0-1"]
[Round "03"]
[TimeControl "180+1"]
[Date "2022.03.16"]
[WhiteClock "0:00:11"]
[BlackClock "0:01:27"]

1. e4 {[%clk 0:03:00]}  e5 {[%clk 0:03:00]} 2. Nf3 {[%clk 0:02:59]}  Nc6 {[%clk 0:03:01]} 3. Bc4 {[%clk 0:02:58]}  Bc5 {[%clk 0:03:01]} 4. c3 {[%clk 0:02:59]}  Nf6 {[%clk 0:03:01]} 5. d4 {[%clk 0:02:59]}  exd4 {[%clk 0:03:02]} 6. cxd4 {[%clk 0:02:59]}  Bb4+ {[%clk 0:03:02]} 7. Nc3 {[%clk 0:02:59]}  Nxe4 {[%clk 0:03:02]} 8. O-O {[%clk 0:02:58]}  Bxc3 {[%clk 0:03:00]} 9. d5 {[%clk 0:02:58]}  Bf6 {[%clk 0:02:39]} 10. Re1 {[%clk 0:02:54]}  O-O {[%clk 0:02:36]} 11. Rxe4 {[%clk 0:02:36]}  Nb8 {[%clk 0:02:14]} 12. d6 {[%clk 0:02:31]}  a6 {[%clk 0:02:11]} 13. a4 {[%clk 0:02:16]}  Nc6 {[%clk 0:02:04]} 14. Bf4 {[%clk 0:02:11]}  cxd6 {[%clk 0:02:02]} 15. Bxd6 {[%clk 0:02:09]}  Re8 {[%clk 0:02:02]} 16. Qd5 {[%clk 0:01:48]}  Re6 {[%clk 0:01:59]} 17. Rae1 {[%clk 0:01:37]}  b5 {[%clk 0:01:55]} 18. axb5 {[%clk 0:01:17]}  axb5 {[%clk 0:01:56]} 19. Qxb5 {[%clk 0:01:14]}  Ba6 {[%clk 0:01:44]} 20. Qc5 {[%clk 0:00:12]}  Bxc4 {[%clk 0:01:37]} 21. Rxc4 {[%clk 0:00:11]}  Ra5 {[%clk 0:01:27]} 0-1


[Site "https://www.chess.com"]

[Event "Titled Tuesday Blitz March 15 Late 2022"]
[White "Srihari L R"]
[Black "Hess, Robert"]
[WhiteFideId "46617116"]
[BlackFideId "2022036"]
[WhiteElo "2121"]
[BlackElo "2557"]
[Result "1/2-1/2"]
[Round "03"]
[TimeControl "180+1"]
[Date "2022.03.15"]
[WhiteClock "0:00:04"]
[BlackClock "0:00:08"]

1. d4 {[%clk 0:03:00]}  g6 {[%clk 0:03:00]} 2. Nf3 {[%clk 0:02:50]}  Bg7 {[%clk 0:03:01]} 3. g3 {[%clk 0:02:47]}  e6 {[%clk 0:03:00]} 4. Bg2 {[%clk 0:02:47]}  Ne7 {[%clk 0:03:01]} 5. O-O {[%clk 0:02:47]}  d6 {[%clk 0:02:58]} 6. Nc3 {[%clk 0:02:45]}  Nd7 {[%clk 0:02:59]} 7. e4 {[%clk 0:02:44]}  a6 {[%clk 0:02:59]} 8. Re1 {[%clk 0:02:44]}  h6 {[%clk 0:02:55]} 9. e5 {[%clk 0:02:42]}  dxe5 {[%clk 0:02:44]} 10. dxe5 {[%clk 0:02:41]}  Nc6 {[%clk 0:02:43]} 11. Qe2 {[%clk 0:02:20]}  O-O {[%clk 0:02:33]} 12. Be3 {[%clk 0:02:00]}  Ndxe5 {[%clk 0:02:03]} 13. Nxe5 {[%clk 0:01:58]}  Nxe5 {[%clk 0:02:04]} 14. Rad1 {[%clk 0:01:58]}  Qe7 {[%clk 0:01:37]} 15. Bf4 {[%clk 0:01:48]}  Nc6 {[%clk 0:01:31]} 16. Qc4 {[%clk 0:01:19]}  Qb4 {[%clk 0:00:48]} 17. Qxb4 {[%clk 0:00:32]}  Nxb4 {[%clk 0:00:48]} 18. Re4 {[%clk 0:00:32]}  Nd5 {[%clk 0:00:20]} 19. Nxd5 {[%clk 0:00:30]}  exd5 {[%clk 0:00:21]} 20. Rxd5 {[%clk 0:00:31]}  c6 {[%clk 0:00:21]} 21. Rd1 {[%clk 0:00:25]}  Bf5 {[%clk 0:00:18]} 22. Re7 {[%clk 0:00:20]}  Rad8 {[%clk 0:00:14]} 23. Rde1 {[%clk 0:00:16]}  Bc8 {[%clk 0:00:14]} 24. c3 {[%clk 0:00:15]}  g5 {[%clk 0:00:10]} 25. Bc1 {[%clk 0:00:14]}  Bf6 {[%clk 0:00:09]} 26. R7e2 {[%clk 0:00:14]}  Be6 {[%clk 0:00:09]} 27. f4 {[%clk 0:00:14]}  Bxa2 {[%clk 0:00:06]} 28. fxg5 {[%clk 0:00:15]}  Bxg5 {[%clk 0:00:06]} 29. Bxg5 {[%clk 0:00:14]}  hxg5 {[%clk 0:00:07]} 30. Re7 {[%clk 0:00:15]}  Rb8 {[%clk 0:00:06]} 31. R1e5 {[%clk 0:00:14]}  f6 {[%clk 0:00:07]} 32. Re3 {[%clk 0:00:13]}  Rf7 {[%clk 0:00:07]} 33. Bh3 {[%clk 0:00:11]}  Kf8 {[%clk 0:00:06]} 34. R7e4 {[%clk 0:00:09]}  Bd5 {[%clk 0:00:05]} 35. Rd4 {[%clk 0:00:09]}  Re7 {[%clk 0:00:05]} 36. Rxe7 {[%clk 0:00:07]}  Kxe7 {[%clk 0:00:06]} 37. c4 {[%clk 0:00:08]}  Bf7 {[%clk 0:00:05]} 38. Rd7+ {[%clk 0:00:08]}  Kf8 {[%clk 0:00:05]} 39. c5 {[%clk 0:00:08]}  b6 {[%clk 0:00:05]} 40. b4 {[%clk 0:00:07]}  bxc5 {[%clk 0:00:06]} 41. bxc5 {[%clk 0:00:08]}  Rb1+ {[%clk 0:00:05]} 42. Kf2 {[%clk 0:00:08]}  Rb2+ {[%clk 0:00:06]} 43. Kg1 {[%clk 0:00:08]}  Rc2 {[%clk 0:00:06]} 44. Bf1 {[%clk 0:00:05]}  a5 {[%clk 0:00:04]} 45. Rd6 {[%clk 0:00:04]}  Rxc5 {[%clk 0:00:02]} 46. Rxf6 {[%clk 0:00:05]}  Kg7 {[%clk 0:00:03]} 47. Rf2 {[%clk 0:00:04]}  a4 {[%clk 0:00:03]} 48. Rf3 {[%clk 0:00:03]}  Ra5 {[%clk 0:00:02]} 49. Ra3 {[%clk 0:00:03]}  Bd5 {[%clk 0:00:03]} 50. Bd3 {[%clk 0:00:04]}  Kf6 {[%clk 0:00:03]} 51. Kf2 {[%clk 0:00:04]}  c5 {[%clk 0:00:03]} 52. Ke3 {[%clk 0:00:05]}  c4 {[%clk 0:00:03]} 53. Bc2 {[%clk 0:00:06]}  Bc6 {[%clk 0:00:03]} 54. Kd4 {[%clk 0:00:06]}  g4 {[%clk 0:00:03]} 55. Kxc4 {[%clk 0:00:06]}  Rh5 {[%clk 0:00:04]} 56. Bxa4 {[%clk 0:00:06]}  Bf3 {[%clk 0:00:04]} 57. h4 {[%clk 0:00:04]}  gxh3 {[%clk 0:00:04]} 58. Rxf3+ {[%clk 0:00:04]}  Kg5 {[%clk 0:00:05]} 59. Rf1 {[%clk 0:00:04]}  h2 {[%clk 0:00:04]} 60. Bc6 {[%clk 0:00:04]}  Rh3 {[%clk 0:00:04]} 61. g4 {[%clk 0:00:04]}  Kxg4 {[%clk 0:00:04]} 62. Bd7+ {[%clk 0:00:04]}  Kg3 {[%clk 0:00:05]} 63. Bxh3 {[%clk 0:00:03]}  Kxh3 {[%clk 0:00:06]} 64. Kd3 {[%clk 0:00:04]}  Kg2 {[%clk 0:00:07]} 65. Ra1 {[%clk 0:00:04]}  h1=Q {[%clk 0:00:07]} 66. Rxh1 {[%clk 0:00:04]}  Kxh1 {[%clk 0:00:08]} 1/2-1/2


[Site "https://www.chess.com"]

[Event "Titled Tuesday Blitz March 15 Late 2022"]
[White "Svane, Rasmus"]
[Black "Khanin, Semen"]
[WhiteFideId "4657101"]
[BlackFideId "4111990"]
[WhiteElo "2645"]
[BlackElo "2442"]
[Result "1-0"]
[Round "03"]
[TimeControl "180+1"]
[Date "2022.03.15"]
[WhiteClock "0:00:09"]
[BlackClock "0:00:01"]

1. Nf3 {[%clk 0:03:00]}  Nf6 {[%clk 0:02:59]} 2. g3 {[%clk 0:03:01]}  g6 {[%clk 0:02:59]} 3. Bg2 {[%clk 0:03:01]}  Bg7 {[%clk 0:03:00]} 4. O-O {[%clk 0:03:02]}  O-O {[%clk 0:03:00]} 5. d4 {[%clk 0:03:03]}  d5 {[%clk 0:03:00]} 6. c4 {[%clk 0:03:02]}  c6 {[%clk 0:03:01]} 7. Qb3 {[%clk 0:03:02]}  a5 {[%clk 0:03:00]} 8. Rd1 {[%clk 0:03:01]}  a4 {[%clk 0:02:59]} 9. Qb4 {[%clk 0:03:02]}  dxc4 {[%clk 0:02:51]} 10. Qxc4 {[%clk 0:03:03]}  Bf5 {[%clk 0:02:45]} 11. e3 {[%clk 0:03:03]}  Nbd7 {[%clk 0:02:44]} 12. Nc3 {[%clk 0:03:03]}  Ne4 {[%clk 0:02:43]} 13. Nh4 {[%clk 0:03:02]}  Be6 {[%clk 0:02:40]} 14. Qe2 {[%clk 0:03:03]}  Nxc3 {[%clk 0:02:39]} 15. bxc3 {[%clk 0:03:03]}  Nb6 {[%clk 0:02:34]} 16. Nf3 {[%clk 0:03:04]}  Bc4 {[%clk 0:02:33]} 17. Qc2 {[%clk 0:03:04]}  f5 {[%clk 0:02:31]} 18. Rb1 {[%clk 0:03:00]}  Bd5 {[%clk 0:02:30]} 19. Nd2 {[%clk 0:02:34]}  Bxg2 {[%clk 0:02:10]} 20. Kxg2 {[%clk 0:02:35]}  c5 {[%clk 0:01:38]} 21. Ba3 {[%clk 0:02:25]}  cxd4 {[%clk 0:01:35]} 22. cxd4 {[%clk 0:02:26]}  Rc8 {[%clk 0:01:32]} 23. Qd3 {[%clk 0:02:19]}  Rc6 {[%clk 0:01:29]} 24. Rb5 {[%clk 0:02:14]}  Nd5 {[%clk 0:01:25]} 25. Rc1 {[%clk 0:01:57]}  Rxc1 {[%clk 0:01:22]} 26. Bxc1 {[%clk 0:01:58]}  Qd7 {[%clk 0:01:22]} 27. Qc4 {[%clk 0:01:33]}  e6 {[%clk 0:01:20]} 28. Rc5 {[%clk 0:01:33]}  Ra8 {[%clk 0:01:04]} 29. Nf3 {[%clk 0:01:14]}  Bf8 {[%clk 0:00:48]} 30. Ne5 {[%clk 0:01:11]}  Qd8 {[%clk 0:00:49]} 31. Rb5 {[%clk 0:01:03]}  Rc8 {[%clk 0:00:49]} 32. Qf1 {[%clk 0:01:03]}  Nc3 {[%clk 0:00:46]} 33. Rb2 {[%clk 0:00:44]}  a3 {[%clk 0:00:46]} 34. Rc2 {[%clk 0:00:41]}  Nxa2 {[%clk 0:00:47]} 35. Rxc8 {[%clk 0:00:25]}  Qxc8 {[%clk 0:00:47]} 36. Bd2 {[%clk 0:00:25]}  Nb4 {[%clk 0:00:33]} 37. Qb5 {[%clk 0:00:18]}  Nd5 {[%clk 0:00:20]} 38. Qa4 {[%clk 0:00:16]}  b5 {[%clk 0:00:12]} 39. Qxb5 {[%clk 0:00:14]}  Qa8 {[%clk 0:00:13]} 40. Kh3 {[%clk 0:00:11]}  a2 {[%clk 0:00:12]} 41. Qd7 {[%clk 0:00:12]}  a1=Q {[%clk 0:00:07]} 42. Qxe6+ {[%clk 0:00:12]}  Kg7 {[%clk 0:00:06]} 43. e4 {[%clk 0:00:11]}  Nf4+ {[%clk 0:00:02]} 44. Bxf4 {[%clk 0:00:11]}  Qf1+ {[%clk 0:00:02]} 45. Kh4 {[%clk 0:00:11]}  Qd8+ {[%clk 0:00:02]} 46. Bg5 {[%clk 0:00:11]}  Qc7 {[%clk 0:00:01]} 47. Bf6+ {[%clk 0:00:10]}  Kh6 {[%clk 0:00:01]} 48. Nf7+ {[%clk 0:00:09]} 1-0


[Site "https://www.chess.com"]

[Event "Titled Tuesday Blitz March 15 Late 2022"]
[White "Sztokbant, Bernardo Vainzoff"]
[Black "Paravyan, David"]
[WhiteFideId "2115956"]
[BlackFideId "4194985"]
[WhiteElo "2237"]
[BlackElo "2569"]
[Result "0-1"]
[Round "03"]
[TimeControl "180+1"]
[Date "2022.03.15"]
[WhiteClock "0:00:09"]
[BlackClock "0:01:57"]

1. e4 {[%clk 0:03:00]}  e5 {[%clk 0:03:00]} 2. Nf3 {[%clk 0:03:00]}  Nf6 {[%clk 0:03:00]} 3. Nxe5 {[%clk 0:02:59]}  d6 {[%clk 0:03:01]} 4. Nf3 {[%clk 0:03:00]}  Nxe4 {[%clk 0:03:01]} 5. d4 {[%clk 0:03:01]}  d5 {[%clk 0:03:02]} 6. Bd3 {[%clk 0:03:02]}  Bd6 {[%clk 0:03:02]} 7. O-O {[%clk 0:03:03]}  O-O {[%clk 0:03:02]} 8. c4 {[%clk 0:03:03]}  c6 {[%clk 0:03:02]} 9. Nc3 {[%clk 0:03:04]}  Nxc3 {[%clk 0:03:03]} 10. bxc3 {[%clk 0:03:05]}  dxc4 {[%clk 0:03:04]} 11. Bxc4 {[%clk 0:03:05]}  Bg4 {[%clk 0:03:04]} 12. h3 {[%clk 0:03:05]}  Bh5 {[%clk 0:03:05]} 13. Re1 {[%clk 0:03:04]}  Nd7 {[%clk 0:03:05]} 14. Rb1 {[%clk 0:02:59]}  b5 {[%clk 0:03:04]} 15. Be2 {[%clk 0:02:59]}  Bg6 {[%clk 0:03:04]} 16. Bd3 {[%clk 0:02:59]}  Nb6 {[%clk 0:03:00]} 17. Bg5 {[%clk 0:02:58]}  Qd7 {[%clk 0:03:00]} 18. Ne5 {[%clk 0:02:50]}  Bxe5 {[%clk 0:03:00]} 19. Bxg6 {[%clk 0:02:40]}  Bh2+ {[%clk 0:02:59]} 20. Kxh2 {[%clk 0:02:39]}  hxg6 {[%clk 0:02:58]} 21. Qf3 {[%clk 0:02:29]}  Rfe8 {[%clk 0:02:58]} 22. Bf4 {[%clk 0:02:13]}  Nd5 {[%clk 0:02:58]} 23. Bg3 {[%clk 0:02:12]}  a5 {[%clk 0:02:55]} 24. a4 {[%clk 0:02:06]}  bxa4 {[%clk 0:02:54]} 25. c4 {[%clk 0:02:07]}  Nb4 {[%clk 0:02:54]} 26. Qc3 {[%clk 0:01:56]}  Rxe1 {[%clk 0:02:52]} 27. Rxe1 {[%clk 0:01:53]}  a3 {[%clk 0:02:53]} 28. Qxa3 {[%clk 0:01:44]}  Qxd4 {[%clk 0:02:50]} 29. Re7 {[%clk 0:01:14]}  Qxc4 {[%clk 0:02:48]} 30. Bd6 {[%clk 0:00:52]}  Qd4 {[%clk 0:02:19]} 31. Bxb4 {[%clk 0:00:28]}  Qxb4 {[%clk 0:02:18]} 32. Qe3 {[%clk 0:00:29]}  Qd6+ {[%clk 0:02:18]} 33. g3 {[%clk 0:00:29]}  a4 {[%clk 0:02:15]} 34. Re8+ {[%clk 0:00:26]}  Rxe8 {[%clk 0:02:15]} 35. Qxe8+ {[%clk 0:00:27]}  Kh7 {[%clk 0:02:10]} 36. Qxf7 {[%clk 0:00:27]}  Qf6 {[%clk 0:02:10]} 37. Qa2 {[%clk 0:00:25]}  Qd4 {[%clk 0:02:11]} 38. Kg1 {[%clk 0:00:22]}  c5 {[%clk 0:02:10]} 39. h4 {[%clk 0:00:18]}  Qd1+ {[%clk 0:02:05]} 40. Kh2 {[%clk 0:00:17]}  Qb3 {[%clk 0:02:02]} 41. Qe2 {[%clk 0:00:12]}  Qd5 {[%clk 0:02:01]} 42. Qe3 {[%clk 0:00:09]}  c4 {[%clk 0:02:00]} 43. g4 {[%clk 0:00:08]}  Qd6+ {[%clk 0:01:57]} 44. Kh3 {[%clk 0:00:09]}  Qd3 {[%clk 0:01:57]} 0-1


[Site "https://www.chess.com"]

[Event "Titled Tuesday Blitz March 15 Late 2022"]
[White "Tabatabaei, M. Amin"]
[Black "Beerdsen, Thomas"]
[WhiteFideId "12521213"]
[BlackFideId "1030108"]
[WhiteElo "2544"]
[BlackElo "2585"]
[Result "1-0"]
[Round "03"]
[TimeControl "180+1"]
[Date "2022.03.15"]
[WhiteClock "0:01:31"]
[BlackClock "0:00:24"]

1. d4 {[%clk 0:03:00]}  d5 {[%clk 0:03:00]} 2. Nf3 {[%clk 0:02:57]}  Nc6 {[%clk 0:03:00]} 3. e3 {[%clk 0:02:57]}  Bg4 {[%clk 0:03:01]} 4. Bb5 {[%clk 0:02:56]}  e6 {[%clk 0:03:01]} 5. h3 {[%clk 0:02:56]}  Bxf3 {[%clk 0:03:01]} 6. Qxf3 {[%clk 0:02:57]}  Bd6 {[%clk 0:02:56]} 7. c4 {[%clk 0:02:57]}  a6 {[%clk 0:02:54]} 8. Bxc6+ {[%clk 0:02:57]}  bxc6 {[%clk 0:02:55]} 9. c5 {[%clk 0:02:57]}  Be7 {[%clk 0:02:54]} 10. O-O {[%clk 0:02:55]}  f5 {[%clk 0:02:51]} 11. Bd2 {[%clk 0:02:55]}  Nf6 {[%clk 0:02:49]} 12. Ba5 {[%clk 0:02:55]}  Ra7 {[%clk 0:02:26]} 13. Nc3 {[%clk 0:02:52]}  O-O {[%clk 0:02:19]} 14. Qd1 {[%clk 0:02:52]}  Qe8 {[%clk 0:02:16]} 15. Ne2 {[%clk 0:02:52]}  g5 {[%clk 0:02:11]} 16. Nc1 {[%clk 0:02:52]}  h5 {[%clk 0:02:08]} 17. Nd3 {[%clk 0:02:52]}  g4 {[%clk 0:02:03]} 18. h4 {[%clk 0:02:45]}  Nd7 {[%clk 0:01:45]} 19. g3 {[%clk 0:02:41]}  Rf6 {[%clk 0:01:34]} 20. Qa4 {[%clk 0:02:39]}  e5 {[%clk 0:01:27]} 21. dxe5 {[%clk 0:02:36]}  Re6 {[%clk 0:01:26]} 22. Nf4 {[%clk 0:02:32]}  Rxe5 {[%clk 0:01:24]} 23. Qxc6 {[%clk 0:02:29]}  Bxc5 {[%clk 0:01:14]} 24. Bc3 {[%clk 0:02:22]}  Re7 {[%clk 0:01:09]} 25. Qxd5+ {[%clk 0:02:11]}  Qf7 {[%clk 0:01:07]} 26. Rfd1 {[%clk 0:02:10]}  Bd6 {[%clk 0:01:04]} 27. Nxh5 {[%clk 0:02:04]}  Be5 {[%clk 0:00:57]} 28. Qxf7+ {[%clk 0:01:57]}  Kxf7 {[%clk 0:00:56]} 29. Rxd7 {[%clk 0:01:57]}  Rxd7 {[%clk 0:00:57]} 30. Bxe5 {[%clk 0:01:57]}  c5 {[%clk 0:00:58]} 31. Bc3 {[%clk 0:01:55]}  Rd8 {[%clk 0:00:41]} 32. Kf1 {[%clk 0:01:54]}  a5 {[%clk 0:00:41]} 33. Ke2 {[%clk 0:01:51]}  a4 {[%clk 0:00:41]} 34. a3 {[%clk 0:01:52]}  Rad7 {[%clk 0:00:40]} 35. Nf4 {[%clk 0:01:51]}  Rd6 {[%clk 0:00:39]} 36. Rh1 {[%clk 0:01:50]}  Kg8 {[%clk 0:00:39]} 37. h5 {[%clk 0:01:50]}  Kh7 {[%clk 0:00:40]} 38. Rc1 {[%clk 0:01:42]}  Rb6 {[%clk 0:00:34]} 39. Rd1 {[%clk 0:01:41]}  Rxd1 {[%clk 0:00:32]} 40. Kxd1 {[%clk 0:01:42]}  Kh6 {[%clk 0:00:32]} 41. Kc2 {[%clk 0:01:40]}  Rd6 {[%clk 0:00:31]} 42. Nd3 {[%clk 0:01:37]}  Rd5 {[%clk 0:00:29]} 43. Bd2 {[%clk 0:01:32]}  Rd8 {[%clk 0:00:24]} 44. e4+ {[%clk 0:01:30]}  Kxh5 {[%clk 0:00:24]} 45. Nf4+ {[%clk 0:01:31]} 1-0


[Site "https://www.chess.com"]